fUSD/lending_fUSD_20250804
["ID","MTS","AMOUNT","RATE_DAILY","PERIOD"]
[377234927,1754305942475,-661.87,0.00039726,2]
[377234928,1754305942483,-403.41486372,0.00039726,2]
[377234929,1754305942493,-211.940464,0.00039726,14]
[377234930,1754305942505,-400.0,0.00039726,2]
[377234931,1754305942514,-400.0,0.00039726,2]
[377234932,1754305942524,-400.0,0.00039726,2]
[377234933,1754305942533,-400.45,0.00039726,2]
[377234934,1754305942542,-1939.24,0.00039726,2]
[377234935,1754305942551,-211.940464,0.00039726,14]
[377234936,1754305942561,-400.0,0.00039726,2]
[377234937,1754305942570,-786.11,0.00039726,2]
[377234938,1754305942580,-835.46,0.00039726,2]
[377234939,1754305942590,-1820.66,0.00039726,2]
[377234940,1754305942600,-463.48,0.00039726,2]
[377234941,1754305942610,-400.0,0.00039726,2]
[377234942,1754305942619,-1385.33,0.00039726,2]
[377234943,1754305942629,-498.89,0.00039726,2]
[377234944,1754305942638,-400.0,0.00039726,2]
[377234945,1754305942647,-499.13,0.00039726,2]
[377234946,1754305942657,-1516.62,0.00039726,2]
[377234947,1754305942666,-400.0,0.00039726,2]
[377234948,1754305942675,-400.0,0.00039726,2]
[377234949,1754305942685,-400.0,0.00039726,2]
[377234950,1754305942694,-400.0,0.00039726,2]
[377234951,1754305942703,-900.0,0.00039726,2]
[377234952,1754305942713,-550.11,0.00039726,2]
[377234953,1754305942721,-400.0,0.00039726,2]
[377234954,1754305942731,-454.35,0.00039726,2]
[377234955,1754305942740,-1067.05,0.00039726,2]
[377234956,1754305942753,-915.17,0.00039726,2]
[377234957,1754305942762,-400.0,0.00039726,2]
[377234958,1754305942771,-1153.57,0.00039726,2]
[377234959,1754305942780,-470.47,0.00039726,2]
[377234960,1754305942790,-400.0,0.00039726,2]
[377234961,1754305942799,-400.0,0.00039726,2]
[377234962,1754305942809,-400.0,0.00039726,2]
[377234963,1754305942818,-219.6496566,0.00039726,2]
[377234964,1754305942827,-151.0,0.00039726,14]
[377234965,1754305942836,-1488.11,0.00039726,2]
[377234966,1754305942845,-742.88,0.00039726,2]
[377234967,1754305942855,-661.14,0.00039726,2]
[377234968,1754305942864,-275.93172074,0.00039726,2]
[377234969,1754305942873,-441.54,0.00039726,2]
[377234970,1754305942882,-916.79,0.00039726,2]
[377234971,1754305942892,-1102.43,0.00039726,2]
[377234972,1754305942901,-587.55,0.00039726,2]
[377234973,1754305942911,-424.37,0.00039726,2]
[377234974,1754305942924,-400.0,0.00039726,2]
[377234975,1754305942933,-400.0,0.00039726,2]
[377234976,1754305942942,-400.0,0.00039726,2]
[377234977,1754305942952,-1819.37,0.00039726,2]
[377234978,1754305942963,-1188.91,0.00039726,2]
[377234979,1754305942971,-400.0,0.00039726,2]
[377234980,1754305942981,-151.0,0.00039726,14]
[377234981,1754305942992,-151.0,0.00039726,14]
[377234982,1754305943004,-400.0,0.00039726,2]
[377234983,1754305943013,-439.11,0.00039726,2]
[377234984,1754305943022,-400.0,0.00039726,2]
[377234985,1754305943031,-400.0,0.00039726,2]
[377234986,1754305943040,-400.0,0.00039726,2]
[377234987,1754305943050,-1119.27,0.00039726,2]
[377234988,1754305943060,-884.11,0.00039726,2]
[377234989,1754305943069,-465.18,0.00039726,2]
[377234990,1754305943079,-400.0,0.00039726,2]
[377234991,1754305943089,-1124.7,0.00039726,2]
[377234992,1754305943098,-953.16,0.00039726,2]
[377234993,1754305943107,-400.0,0.00039726,2]
[377234994,1754305943117,-449.54,0.00039726,2]
[377234995,1754305943126,-1903.44,0.00039726,2]
[377234996,1754305943135,-400.0,0.00039726,2]
[377234997,1754305943145,-977.67,0.00039726,2]
[377234998,1754305943154,-277.93256234,0.00039726,2]
[377234999,1754305943164,-2558.85,0.00039726,2]
[377235000,1754305943173,-400.0,0.00039726,2]
[377235001,1754305943182,-480.36,0.00039726,2]
[377235002,1754305943191,-400.0,0.00039726,2]
[377235003,1754305943205,-2716.06,0.00039726,2]
[377235004,1754305943220,-400.0,0.00039726,2]
[377235005,1754305943232,-400.0,0.00039726,2]
[377235006,1754305943247,-400.0,0.00039726,2]
[377235007,1754305943262,-1399.58,0.00039726,2]
[377235008,1754305943278,-1797.0,0.00039726,2]
[377235009,1754305943292,-151.0,0.00039726,14]
[377235010,1754305943304,-459.32,0.00039726,2]
[377235011,1754305943320,-2022.23,0.00039726,2]
[377235012,1754305943335,-687.73,0.00039726,2]
[377235013,1754305943351,-4159.78,0.00039726,2]
[377235014,1754305943366,-151.0,0.00039726,14]
[377235015,1754305943382,-400.0,0.00039726,2]
[377235016,1754305943397,-452.62,0.00039726,2]
[377235017,1754305943411,-1027.4,0.00039726,2]
[377235018,1754305943427,-400.0,0.00039726,2]
[377235019,1754305943443,-743.48,0.00039726,2]
[377235020,1754305943457,-400.0,0.00039726,2]
[377235021,1754305943468,-500.0,0.00039726,2]
[377235022,1754305943482,-400.0,0.00039726,2]
[377235023,1754305943498,-1103.2,0.00039726,2]
[377235024,1754305943509,-400.0,0.00039726,2]
[377235025,1754305943523,-2146.76,0.00039726,2]
[377235026,1754305943537,-400.0,0.00039726,2]
[377235027,1754305943550,-697.9,0.00039726,2]
[377235028,1754305943563,-1197.92,0.00039726,2]
[377235029,1754305943575,-700.27,0.00039726,2]
[377235030,1754305943589,-400.0,0.00039726,2]
[377235031,1754305943601,-442.05,0.00039726,2]
[377235032,1754305943615,-400.0,0.00039726,2]
[377235033,1754305943627,-400.0,0.00039726,2]
[377235034,1754305943640,-400.0,0.00039726,2]
[377235035,1754305943652,-400.0,0.00039726,2]
[377235036,1754305943666,-763.21,0.00039726,2]
[377235037,1754305943679,-664.53,0.00039726,2]
[377235038,1754305943692,-862.35,0.00039726,2]
[377235039,1754305943707,-624.93,0.00039726,2]
[377235040,1754305943720,-151.0,0.00039726,14]
[377235041,1754305943732,-793.15,0.00039726,2]
[377235042,1754305943744,-639.19,0.00039726,2]
[377235043,1754305943758,-400.0,0.00039726,2]
[377235044,1754305943772,-605.24,0.00039726,2]
[377235045,1754305943785,-400.0,0.00039726,2]
[377235046,1754305943799,-151.0,0.00039726,14]
[377235047,1754305943813,-2472.68,0.00039726,2]
[377235048,1754305943827,-1368.617935,0.00039726,14]
[377235049,1754305943841,-153.537041,0.00039726,14]
[377235050,1754305943855,-1841.68,0.00039726,2]
[377235051,1754305943868,-151.0,0.00039726,14]
[377235052,1754305943881,-1091.38,0.00039726,2]
[377235053,1754305943893,-400.0,0.00039726,2]
[377235054,1754305943905,-1368.617935,0.00039726,14]
[377235055,1754305943921,-400.0,0.00039726,2]
[377235056,1754305943934,-569.15,0.00039726,2]
[377235057,1754305943947,-400.0,0.00039726,2]
[377235058,1754305943959,-151.0,0.00039726,14]
[377235059,1754305943972,-482.87,0.00039726,2]
[377235060,1754305943985,-400.0,0.00039726,2]
[377235061,1754305943999,-400.0,0.00039726,2]
[377235062,1754305944012,-1179.1,0.00039726,2]
[377235063,1754305944025,-400.0,0.00039726,2]
[377235064,1754305944038,-400.0,0.00039726,2]
[377235065,1754305944052,-400.0,0.00039726,2]
[377235066,1754305944064,-1320.13,0.00039726,2]
[377235067,1754305944076,-1348.28,0.00039726,2]
[377235068,1754305944089,-908.97,0.00039726,2]
[377235069,1754305944101,-1407.62,0.00039726,2]
[377235070,1754305944112,-1144.27,0.00039726,2]
[377235071,1754305944124,-448.56,0.00039726,2]
[377235072,1754305944136,-400.0,0.00039726,2]
[377235073,1754305944148,-853.71,0.00039726,2]
[377235074,1754305944160,-609.84,0.00039726,2]
[377235075,1754305944172,-400.0,0.00039726,2]
[377235076,1754305944185,-1274.99,0.00039726,2]
[377235077,1754305944197,-392.21938968,0.00039726,2]
[377235078,1754305944209,-600.02,0.00039726,2]
[377235079,1754305944222,-800.16,0.00039726,2]
[377235080,1754305944234,-2778.93,0.00039726,2]
[377235081,1754305944249,-787.7,0.00039726,2]
[377235082,1754305944262,-151.0,0.00039726,14]
[377235083,1754305944275,-500.6,0.00039726,2]
[377235084,1754305944287,-499.94,0.00039726,2]
[377235085,1754305944300,-627.38,0.00039726,2]
[377235086,1754305944313,-472.4391595,0.00039726,2]
[377235087,1754305944325,-151.0,0.00039726,14]
[377235088,1754305944338,-461.32,0.00039726,2]
[377235089,1754305944352,-400.0,0.00039726,2]
[377235090,1754305944365,-1107.49,0.00039726,2]
[377235091,1754305944378,-1182.54,0.00039726,2]
[377235092,1754305944392,-400.0,0.00039726,2]
[377235093,1754305944405,-2273.69,0.00039726,2]
[377235094,1754305944418,-400.0,0.00039726,2]
[377235095,1754305944432,-344.47992397,0.00039726,2]
[377235096,1754305944445,-400.0,0.00039726,2]
[377235097,1754305944460,-790.39,0.00039726,2]
[377235098,1754305944482,-400.0,0.00039726,2]
[377235099,1754305944499,-400.0,0.00039726,2]
[377235100,1754305944512,-164.64926794,0.00039726,2]
[377235101,1754305944523,-746.2,0.00039726,2]
[377235102,1754305944535,-513.6,0.00039726,2]
[377235103,1754305944547,-400.0,0.00039726,2]
[377235104,1754305944559,-2544.09,0.00039726,2]
[377235105,1754305944571,-1066.14,0.00039726,2]
[377235106,1754305944582,-856.62,0.00039726,2]
[377235107,1754305944594,-445.82,0.00039726,2]
[377235108,1754305944606,-1070.42,0.00039726,2]
[377235109,1754305944617,-548.68,0.00039726,2]
[377235110,1754305944629,-400.0,0.00039726,2]
[377235111,1754305944641,-400.0,0.00039726,2]
[377235112,1754305944652,-413.36,0.00039726,2]
[377235113,1754305944664,-460.79,0.00039726,2]
[377235114,1754305944675,-865.19,0.00039726,2]
[377235115,1754305944687,-1968.28,0.00039726,2]
[377235116,1754305944700,-1119.16,0.00039726,2]
[377235117,1754305944711,-400.0,0.00039726,2]
[377235118,1754305944723,-400.0,0.00039726,2]
[377235119,1754305944735,-1422.91,0.00039726,2]
[377235120,1754305944749,-400.0,0.00039726,2]
[377235121,1754305944760,-1354.16,0.00039726,2]
[377235122,1754305944771,-400.0,0.00039726,2]
[377235123,1754305944783,-1000.0,0.00039726,2]
[377235124,1754305944795,-400.0,0.00039726,2]
[377235125,1754305944806,-400.0,0.00039726,2]
[377235126,1754305944819,-400.0,0.00039726,2]
[377235127,1754305944831,-400.0,0.00039726,2]
[377235128,1754305944844,-625.15,0.00039726,2]
[377235129,1754305944855,-400.0,0.00039726,2]
[377235130,1754305944867,-400.0,0.00039726,2]
[377235131,1754305944879,-1598.25,0.00039726,2]
[377235132,1754305944891,-1192.41,0.00039726,2]
[377235133,1754305944903,-400.0,0.00039726,2]
[377235134,1754305944919,-400.0,0.00039726,2]
[377235135,1754305944930,-400.0,0.00039726,2]
[377235136,1754305944942,-668.58,0.00039726,2]
[377235137,1754305944954,-575.89,0.00039726,2]
[377235138,1754305944968,-400.0,0.00039726,2]
[377235139,1754305944982,-1116.34,0.00039726,2]
[377235140,1754305944995,-1214.62,0.00039726,2]
[377235141,1754305945007,-1137.04,0.00039726,2]
[377235142,1754305945019,-400.0,0.00039726,2]
[377235143,1754305945030,-400.0,0.00039726,2]
[377235144,1754305945042,-400.0,0.00039726,2]
[377235145,1754305945054,-400.0,0.00039726,2]
[377235146,1754305945067,-1590.64,0.00039726,2]
[377235147,1754305945079,-400.0,0.00039726,2]
[377235148,1754305945093,-400.0,0.00039726,2]
[377235149,1754305945107,-400.0,0.00039726,2]
[377235150,1754305945121,-400.0,0.00039726,2]
[377235151,1754305945135,-400.0,0.00039726,2]
[377235152,1754305945148,-1069.29,0.00039726,2]
[377235153,1754305945161,-1138.57,0.00039726,2]
[377235154,1754305945173,-400.0,0.00039726,2]
[377235155,1754305945186,-400.0,0.00039726,2]
[377235156,1754305945199,-400.0,0.00039726,2]
[377235157,1754305945211,-400.0,0.00039726,2]
[377235158,1754305945222,-400.0,0.00039726,2]
[377235159,1754305945235,-400.0,0.00039726,2]
[377235160,1754305945248,-1131.33,0.00039726,2]
[377235161,1754305945260,-1171.06,0.00039726,2]
[377235162,1754305945273,-1384.7,0.00039726,2]
[377235163,1754305945286,-894.77,0.00039726,2]
[377235164,1754305945298,-599.89,0.00039726,2]
[377235165,1754305945311,-2355.79,0.00039726,2]
[377235166,1754305945323,-1091.28,0.00039726,2]
[377235167,1754305945335,-400.0,0.00039726,2]
[377235168,1754305945347,-400.0,0.00039726,2]
[377235169,1754305945359,-2327.34,0.00039726,2]
[377235170,1754305945371,-501.83,0.00039726,2]
[377235171,1754305945383,-773.66,0.00039726,2]
[377235172,1754305945396,-781.86,0.00039726,2]
[377235173,1754305945408,-151.0,0.00039726,14]
[377235174,1754305945419,-1915.51,0.00039726,2]
[377235175,1754305945431,-400.0,0.00039726,2]
[377235176,1754305945444,-892.62,0.00039726,2]
[377235177,1754305945457,-538.38,0.00039726,2]
[377235178,1754305945468,-829.75,0.00039726,2]
[377235179,1754305945481,-1000.94,0.00039726,2]
[377235180,1754305945492,-1098.02,0.00039726,2]
[377235181,1754305945504,-1453.05,0.00039726,2]
[377235182,1754305945516,-695.84,0.00039726,2]
[377235183,1754305945528,-400.0,0.00039726,2]
[377235184,1754305945540,-437.7,0.00039726,2]
[377235185,1754305945552,-1242.82,0.00039726,2]
[377235186,1754305945564,-1119.1,0.00039726,2]
[377235187,1754305945576,-724.66,0.00039726,2]
[377235188,1754305945588,-1165.58,0.00039726,2]
[377235189,1754305945599,-917.85,0.00039726,2]
[377235190,1754305945611,-2290.17,0.00039726,2]
[377235191,1754305945623,-303.04648531,0.00039726,2]
[377235192,1754305945635,-400.0,0.00039726,2]
[377235193,1754305945647,-1308.63,0.00039726,2]
[377235194,1754305945659,-801.64,0.00039726,2]
[377235195,1754305945672,-400.0,0.00039726,2]
[377235196,1754305945683,-906.75,0.00039726,2]
[377235197,1754305945695,-400.0,0.00039726,2]
[377235198,1754305945707,-918.46,0.00039726,2]
[377235199,1754305945719,-1397.01,0.00039726,2]
[377235200,1754305945731,-564.37,0.00039726,2]
[377235201,1754305945743,-190.522726,0.00039726,14]
[377235202,1754305945755,-1040.59,0.00039726,2]
[377235203,1754305945768,-2104.64,0.00039726,2]
[377235204,1754305945779,-400.0,0.00039726,2]
[377235205,1754305945791,-1334.51,0.00039726,2]
[377235206,1754305945803,-781.51,0.00039726,2]
[377235207,1754305945816,-1353.35,0.00039726,2]
[377235208,1754305945828,-190.522726,0.00039726,14]
[377235209,1754305945840,-1874.18,0.00039726,2]
[377235210,1754305945852,-1021.01,0.00039726,2]
[377235211,1754305945865,-400.0,0.00039726,2]
[377235212,1754305945879,-400.0,0.00039726,2]
[377235213,1754305945891,-1025.08,0.00039726,2]
[377235214,1754305945903,-151.0,0.00039726,14]
[377235215,1754305945917,-161.66285293,0.00039726,2]
[377235216,1754305945930,-627.8,0.00039726,2]
[377235217,1754305945941,-400.0,0.00039726,2]
[377235218,1754305945956,-1868.95,0.00039726,2]
[377235219,1754305945970,-468.7,0.00039726,2]
[377235220,1754305945982,-914.79,0.00039726,2]
[377235221,1754305945994,-1314.14,0.00039726,2]
[377235222,1754305946008,-400.0,0.00039726,2]
[377235223,1754305946020,-1387.83,0.00039726,2]
[377235224,1754305946031,-1038.98,0.00039726,2]
[377235225,1754305946044,-925.88,0.00039726,2]
[377235226,1754305946055,-1014.44,0.00039726,2]
[377235227,1754305946068,-935.88,0.00039726,2]
[377235228,1754305946081,-400.0,0.00039726,2]
[377235229,1754305946094,-590.39,0.00039726,2]
[377235230,1754305946107,-1614.1,0.00039726,2]
[377235231,1754305946120,-710.0,0.00039726,2]
[377235232,1754305946133,-1412.5,0.00039726,2]
[377235233,1754305946145,-608.78,0.00039726,2]
[377235234,1754305946157,-400.0,0.00039726,2]
[377235235,1754305946168,-695.98,0.00039726,2]
[377235236,1754305946179,-400.0,0.00039726,2]
[377235237,1754305946199,-1252.59,0.00039726,2]
[377235238,1754305946211,-400.0,0.00039726,2]
[377235239,1754305946223,-856.19,0.00039726,2]
[377235240,1754305946234,-1142.6,0.00039726,2]
[377235241,1754305946246,-400.0,0.00039726,2]
[377235242,1754305946259,-400.0,0.00039726,2]
[377235243,1754305946272,-810.9,0.00039726,2]
[377235244,1754305946284,-400.0,0.00039726,2]
[377235245,1754305946296,-793.48,0.00039726,2]
[377235246,1754305946307,-1752.3,0.00039726,2]
[377235247,1754305946320,-400.0,0.00039726,2]
[377235248,1754305946332,-1639.2,0.00039726,2]
[377235249,1754305946343,-1057.57,0.00039726,2]
[377235250,1754305946355,-1899.23,0.00039726,2]
[377235251,1754305946366,-400.0,0.00039726,2]
[377235252,1754305946378,-1894.1,0.00039726,2]
[377235253,1754305946390,-400.0,0.00039726,2]
[377235254,1754305946402,-400.0,0.00039726,2]
[377235255,1754305946414,-400.0,0.00039726,2]
[377235256,1754305946426,-400.0,0.00039726,2]
[377235257,1754305946438,-400.0,0.00039726,2]
[377235258,1754305946450,-400.0,0.00039726,2]
[377235259,1754305946462,-1066.82,0.00039726,2]
[377235260,1754305946474,-400.0,0.00039726,2]
[377235261,1754305946486,-1326.33,0.00039726,2]
[377235262,1754305946498,-405.69,0.00039726,2]
[377235263,1754305946510,-1189.48,0.00039726,2]
[377235264,1754305946522,-1704.15,0.00039726,2]
[377235265,1754305946534,-1046.61,0.00039726,2]
[377235266,1754305946546,-400.0,0.00039726,2]
[377235267,1754305946558,-833.04,0.00039726,2]
[377235268,1754305946570,-400.0,0.00039726,2]
[377235269,1754305946582,-684.99,0.00039726,2]
[377235270,1754305946594,-596.8,0.00039726,2]
[377235271,1754305946606,-400.0,0.00039726,2]
[377235272,1754305946618,-370.54949138,0.00039726,2]
[377235273,1754305946630,-925.69,0.00039726,2]
[377235274,1754305946642,-1612.63,0.00039726,2]
[377235275,1754305946655,-482.48,0.00039726,2]
[377235276,1754305946667,-453.71623946,0.00039726,2]
[377235277,1754305946679,-1463.3,0.00039726,2]
[377235278,1754305946690,-1295.25,0.00039726,2]
[377235279,1754305946702,-2145.64,0.00039726,2]
[377235280,1754305946714,-400.0,0.00039726,2]
[377235281,1754305946726,-1283.66,0.00039726,2]
[377235282,1754305946738,-400.0,0.00039726,2]
[377235283,1754305946749,-758.52,0.00039726,2]
[377235284,1754305946761,-400.0,0.00039726,2]
[377235285,1754305946773,-499.17618579,0.00039726,2]
[377235286,1754305946785,-400.0,0.00039726,2]
[377235287,1754305946796,-7192.74,0.00039726,2]
[377235288,1754305946808,-721.69,0.00039726,2]
[377235289,1754305946820,-988.46,0.00039726,2]
[377235290,1754305946832,-896.0,0.00039726,2]
[377235291,1754305946844,-627.97,0.00039726,2]
[377235292,1754305946855,-453.42,0.00039726,2]
[377235293,1754305946867,-766.66,0.00039726,2]
[377235294,1754305946879,-400.0,0.00039726,2]
[377235295,1754305946891,-400.0,0.00039726,2]
[377235296,1754305946903,-400.0,0.00039726,2]
[377235297,1754305946919,-1762.88,0.00039726,2]
[377235298,1754305946931,-1472.33,0.00039726,2]
[377235299,1754305946944,-400.0,0.00039726,2]
[377235300,1754305946955,-400.0,0.00039726,2]
[377235301,1754305946967,-1303.02,0.00039726,2]
[377235302,1754305946979,-400.0,0.00039726,2]
[377235303,1754305946992,-796.7,0.00039726,2]
[377235304,1754305947004,-1414.12,0.00039726,2]
[377235305,1754305947017,-700.57,0.00039726,2]
[377235306,1754305947030,-400.0,0.00039726,2]
[377235307,1754305947042,-986.33,0.00039726,2]
[377235308,1754305947054,-553.07,0.00039726,2]
[377235309,1754305947066,-658.58,0.00039726,2]
[377235310,1754305947078,-1321.92,0.00039726,2]
[377235311,1754305947089,-151.0,0.00039726,14]
[377235312,1754305947101,-400.0,0.00039726,2]
[377235313,1754305947113,-400.0,0.00039726,2]
[377235314,1754305947126,-337.5060047,0.00039726,2]
[377235315,1754305947139,-499.21,0.00039726,2]
[377235316,1754305947151,-151.0,0.00039726,14]
[377235317,1754305947164,-1836.51,0.00039726,2]
[377235318,1754305947177,-1050.51,0.00039726,2]
[377235319,1754305947188,-682.1,0.00039726,2]
[377235320,1754305947201,-739.68,0.00039726,2]
[377235321,1754305947214,-1274.01,0.00039726,2]
[377235322,1754305947226,-400.0,0.00039726,2]
[377235323,1754305947239,-651.05,0.00039726,2]
[377235324,1754305947252,-1303.02,0.00039726,2]
[377235325,1754305947889,-400.0,0.00039726,2]
[377235326,1754305947906,-822.07,0.00039726,2]
[377235327,1754305947942,-999.83,0.00039726,2]
[377235328,1754305947952,-596.36,0.00039726,2]
[377235329,1754305947962,-1091.32,0.00039726,2]
[377235330,1754305947971,-400.0,0.00039726,2]
[377235331,1754305947981,-472.51696338,0.00039726,2]
[377235332,1754305947991,-562.8,0.00039726,2]
[377235333,1754305948001,-558.09,0.00039726,2]
[377235334,1754305948010,-1242.64,0.00039726,2]
[377235335,1754305948021,-793.84,0.00039726,2]
[377235336,1754305948030,-1330.82,0.00039726,2]
[377235337,1754305948040,-286.183478,0.00039726,14]
[377235338,1754305948049,-1446.54,0.00039726,2]
[377235339,1754305948059,-2488.352271,0.00039726,14]
[377235340,1754305948069,-1346.03,0.00039726,2]
[377235341,1754305948078,-1481.75,0.00039726,2]
[377235342,1754305948087,-879.7,0.00039726,2]
[377235343,1754305948097,-400.0,0.00039726,2]
[377235344,1754305948106,-400.0,0.00039726,2]
[377235345,1754305948116,-1081.44,0.00039726,2]
[377235346,1754305948126,-2488.352271,0.00039726,14]
[377235347,1754305948135,-2294.74,0.00039726,2]
[377235348,1754305948145,-528.1,0.00039726,2]
[377235349,1754305948155,-400.0,0.00039726,2]
[377235350,1754305948164,-768.31,0.00039726,2]
[377235351,1754305948174,-2185.11,0.00039726,2]
[377235352,1754305948183,-764.62,0.00039726,2]
[377235353,1754305948193,-400.0,0.00039726,2]
[377235354,1754305948202,-400.0,0.00039726,2]
[377235355,1754305948212,-2154.11,0.00039726,2]
[377235356,1754305948223,-650.0,0.00039726,120]
[377235357,1754305948232,-650.0,0.00039726,120]
[377235358,1754305948242,-650.0,0.00039726,120]
[377235359,1754305948252,-286.183478,0.00039726,14]
[377235360,1754305948262,-400.0,0.00039726,2]
[377235361,1754305948272,-400.0,0.00039726,2]
[377235362,1754305948281,-670.62,0.00039726,2]
[377235363,1754305948291,-1687.51,0.00039726,2]
[377235364,1754305948301,-400.0,0.00039726,2]
[377235365,1754305948311,-1797.87,0.00039726,2]
[377235366,1754305948320,-884.68,0.00039726,2]
[377235367,1754305948330,-650.0,0.00039726,120]
[377235368,1754305948340,-650.0,0.00039726,120]
[377235369,1754305948350,-650.0,0.00039726,120]
[377235370,1754305948359,-466.07,0.00039726,2]
[377235371,1754305948368,-252.25554,0.00039726,14]
[377235372,1754305948377,-659.47,0.00039726,2]
[377235373,1754305948386,-1427.05,0.00039726,2]
[377235374,1754305948396,-1547.49,0.00039726,2]
[377235375,1754305948406,-430.38,0.00039726,2]
[377235376,1754305948415,-400.0,0.00039726,2]
[377235377,1754305948424,-400.0,0.00039726,2]
[377235378,1754305948434,-948.07,0.00039726,2]
[377235379,1754305948444,-252.25554,0.00039726,14]
[377235380,1754305948453,-1424.69,0.00039726,2]
[377235381,1754305948463,-1692.45,0.00039726,2]
[377235382,1754305948473,-400.0,0.00039726,2]
[377235383,1754305948482,-1068.48,0.00039726,2]
[377235384,1754305948492,-870.74,0.00039726,2]
[377235385,1754305948501,-1630.8,0.00039726,2]
[377235386,1754305948510,-400.0,0.00039726,2]
[377235387,1754305948520,-840.48,0.00039726,2]
[377235388,1754305948530,-400.0,0.00039726,2]
[377235389,1754305948540,-665.52,0.00039726,2]
[377235390,1754305948550,-469.7,0.00039726,2]
[377235391,1754305948559,-1702.7,0.00039726,2]
[377235392,1754305948569,-727.65,0.00039726,2]
[377235393,1754305948579,-216.73529206,0.00039726,2]
[377235394,1754305948588,-1107.78,0.00039726,2]
[377235395,1754305948598,-1880.84,0.00039726,2]
[377235396,1754305948608,-813.9,0.00039726,2]
[377235397,1754305948617,-400.0,0.00039726,2]
[377235398,1754305948627,-400.0,0.00039726,2]
[377235399,1754305948636,-400.0,0.00039726,2]
[377235400,1754305948646,-874.7,0.00039726,2]
[377235401,1754305948655,-400.0,0.00039726,2]
[377235402,1754305948666,-426.16,0.00039726,2]
[377235403,1754305948675,-665.68,0.00039726,2]
[377235404,1754305948685,-400.0,0.00039726,2]
[377235405,1754305948695,-1110.47,0.00039726,2]
[377235406,1754305948705,-400.0,0.00039726,2]
[377235407,1754305948715,-903.87,0.00039726,2]
[377235408,1754305948724,-1358.5,0.00039726,2]
[377235409,1754305948734,-470.81,0.00039726,2]
[377235410,1754305948743,-440.85,0.00039726,2]
[377235411,1754305948755,-1647.73,0.00039726,2]
[377235412,1754305948765,-1246.04,0.00039726,2]
[377235413,1754305948774,-924.22,0.00039726,2]
[377235414,1754305948784,-994.67,0.00039726,2]
[377235415,1754305948794,-472.86,0.00039726,2]
[377235416,1754305948804,-1443.42,0.00039726,2]
[377235417,1754305948813,-770.36,0.00039726,2]
[377235418,1754305948823,-1946.52,0.00039726,2]
[377235419,1754305948833,-400.0,0.00039726,2]
[377235420,1754305948843,-979.61,0.00039726,2]
[377235421,1754305948852,-482.35,0.00039726,2]
[377235422,1754305948862,-400.0,0.00039726,2]
[377235423,1754305948873,-400.0,0.00039726,2]
[377235424,1754305948882,-2101.73,0.00039726,2]
[377235425,1754305948892,-860.7,0.00039726,2]
[377235426,1754305948901,-645.5,0.00039726,2]